fUSD/lending_fUSD_20240518
["ID","MTS","AMOUNT","RATE_DAILY","PERIOD"]
[327420206,1716058240301,-500.0,0.00029997,2]
[327420207,1716058240311,-500.0,0.00029997,2]
[327420209,1716058240320,-500.0,0.00029997,2]
[327420211,1716058240330,-341.30327301,0.00029997,2]
[327420213,1716058240339,-500.0,0.00029997,2]
[327420215,1716058240348,-500.0,0.00029997,2]
[327420217,1716058240358,-500.0,0.00029997,2]
[327420219,1716058240367,-500.0,0.00029997,2]
[327420221,1716058240376,-500.0,0.00029997,2]
[327420223,1716058240385,-500.0,0.00029997,2]
[327420225,1716058240395,-500.0,0.00029997,2]
[327420227,1716058240404,-500.0,0.00029997,2]
[327420229,1716058240413,-746.48,0.00029997,2]
[327420231,1716058240423,-500.0,0.00029997,2]
[327420233,1716058240432,-500.0,0.00029997,2]
[327420235,1716058240441,-500.0,0.00029997,2]
[327420237,1716058240452,-500.0,0.00029997,2]
[327420239,1716058240461,-500.0,0.00029997,2]
[327420241,1716058240471,-500.0,0.00029997,2]
[327420243,1716058240480,-500.0,0.00029997,2]
[327420245,1716058240489,-500.0,0.00029997,2]
[327420247,1716058240499,-500.0,0.00029997,2]
[327420249,1716058240508,-500.0,0.00029997,2]
[327420251,1716058240517,-500.0,0.00029997,2]
[327420253,1716058240527,-500.0,0.00029997,2]
[327420255,1716058240536,-500.0,0.00029997,2]
[327420257,1716058240546,-500.0,0.00029997,2]
[327420259,1716058240555,-500.0,0.00029997,2]
[327420261,1716058240565,-500.0,0.00029997,2]
[327420263,1716058240574,-500.0,0.00029997,2]
[327420265,1716058240585,-500.0,0.00029997,2]
[327420267,1716058240595,-497.49238463,0.00029997,2]
[327420269,1716058240604,-500.0,0.00029997,2]
[327420271,1716058240613,-500.0,0.00029997,2]
[327420273,1716058240623,-500.0,0.00029997,2]
[327420275,1716058240632,-500.0,0.00029997,2]
[327420277,1716058240642,-500.0,0.00029997,2]
[327420279,1716058240652,-500.0,0.00029997,2]
[327420281,1716058240662,-500.0,0.00029997,2]
[327420283,1716058240671,-500.0,0.00029997,2]
[327420285,1716058240681,-500.0,0.00029997,2]
[327420287,1716058240690,-500.0,0.00029997,2]
[327420289,1716058240700,-500.0,0.00029997,2]
[327420291,1716058240709,-500.0,0.00029997,2]
[327420293,1716058240719,-500.0,0.00029997,2]
[327420295,1716058240728,-500.0,0.00029997,2]
[327420297,1716058240737,-500.0,0.00029997,2]
[327420299,1716058240747,-500.0,0.00029997,2]
[327420301,1716058240757,-500.0,0.00029997,2]
[327420303,1716058240766,-500.0,0.00029997,2]
[327420305,1716058240775,-500.0,0.00029997,2]
[327420307,1716058240785,-500.0,0.00029997,2]
[327420309,1716058240794,-500.0,0.00029997,2]
[327420311,1716058240803,-500.0,0.00029997,2]
[327420313,1716058240813,-500.0,0.00029997,2]
[327420315,1716058240822,-500.0,0.00029997,2]
[327420316,1716058240832,-500.0,0.00029997,2]
[327420318,1716058240842,-500.0,0.00029997,2]
[327420321,1716058240851,-500.0,0.00029997,2]
[327420322,1716058240860,-508.12484566,0.00029997,2]
[327420323,1716058240870,-500.0,0.00029997,2]
[327420324,1716058240879,-500.0,0.00029997,2]
[327420325,1716058240888,-500.0,0.00029997,2]
[327420326,1716058240897,-500.0,0.00029997,2]
[327420327,1716058240907,-500.0,0.00029997,2]
[327420328,1716058240917,-319.18184512,0.00029997,2]
[327420329,1716058240926,-500.0,0.00029997,2]
[327420330,1716058240935,-500.0,0.00029997,2]
[327420331,1716058240944,-500.0,0.00029997,2]
[327420332,1716058240954,-501.41612825,0.00029999,2]
[327420333,1716058240965,-500.0,0.00029999,2]
[327420334,1716058240974,-197.02238456,0.0003,2]
[327420335,1716058240984,-289.23555328,0.00030097,4]
[327420336,1716058240993,-5545.0387,0.00030171,2]
[327420337,1716058241003,-71344.32684607,0.00030171,2]
[327420338,1716058241140,-6139.73353367,0.00030171,2]
[327420339,1716058241164,-642.18873986,0.00030171,2]
[327420340,1716058241183,-1998.5,0.00030171,2]
[327420341,1716058241198,-1785.71493991,0.00030171,2]
[327420350,1716058242750,-500.0,0.00029996,2]
[327420351,1716058242760,-3221.32528445,0.00030171,2]
[327420352,1716058242771,-975.40414729,0.00030171,2]
[327420353,1716058242918,-1299.7799031,0.00030171,2]
[327420354,1716058242930,-289.21440507,0.00030171,2]
[327420355,1716058243066,-686.88411927,0.00030171,2]
[327420356,1716058245583,-319.31715993,0.00029995,2]
[327420357,1716058245595,-180.68284007,0.00029995,2]
[327420358,1716058245605,-500.0,0.00029995,2]
[327420359,1716058245614,-500.0,0.00029996,2]
[327420360,1716058245623,-500.0,0.00029996,2]
[327420361,1716058245632,-14578.01716063,0.00030171,2]
[327420362,1716058245736,-6741.73062068,0.00030171,2]
[327420363,1716058245746,-1517.0,0.000302,2]
[327420364,1716058245755,-195.92344364,0.00030201,2]
[327420365,1716058245765,-211.04941276,0.00030261,2]
[327420366,1716058245774,-500.0,0.00030269,2]
[327420367,1716058245784,-500.0,0.00030269,2]
[327420368,1716058245793,-500.0,0.00030269,2]
[327420369,1716058245803,-500.0,0.00030269,2]
[327420370,1716058245812,-999.83,0.00030269,2]
[327420371,1716058245821,-500.0,0.00030269,2]
[327420372,1716058245832,-851.32,0.00030269,2]
[327420373,1716058245841,-711.84,0.00030269,2]
[327420374,1716058245853,-630.49,0.00030269,2]
[327420375,1716058245863,-500.0,0.00030269,2]
[327420376,1716058245872,-2823.0,0.00030269,2]
[327420377,1716058245882,-264.91066321,0.00030269,2]
[327420378,1716058245892,-500.0,0.00030269,2]
[327420379,1716058245902,-500.0,0.00030269,2]
[327420380,1716058245912,-799.25,0.00030269,2]
[327420381,1716058245922,-500.0,0.00030269,2]
[327420382,1716058245931,-500.0,0.00030269,2]
[327420383,1716058245940,-500.0,0.00030269,2]
[327420384,1716058245949,-4227.0,0.00030269,2]
[327420385,1716058245959,-500.0,0.00030269,2]
[327420386,1716058245969,-500.0,0.00030269,2]
[327420387,1716058245979,-500.0,0.00030269,2]
[327420388,1716058245988,-500.0,0.00030269,2]
[327420389,1716058245998,-500.0,0.00030269,2]
[327420390,1716058246007,-500.0,0.00030269,2]
[327420391,1716058246016,-206.344491,0.0003027,4]
[327420392,1716058246026,-416.69130937,0.0003027,2]
[327420393,1716058246035,-500.0,0.0003027,2]
[327420394,1716058246045,-500.0,0.0003027,2]
[327420395,1716058246054,-500.0,0.0003027,2]
[327420396,1716058246064,-222.89,0.0003027,2]
[327420397,1716058246078,-500.0,0.0003027,2]
[327420398,1716058246088,-500.0,0.0003027,2]
[327420399,1716058246097,-428.46,0.0003027,2]
[327420400,1716058246106,-500.0,0.0003027,2]
[327420401,1716058246116,-607.3969966,0.0003027,2]
[327420402,1716058246127,-494.87306274,0.0003027,2]
[327420403,1716058246157,-5.12693726,0.0003027,2]
[327420404,1716058246167,-500.0,0.0003027,2]
[327420405,1716058246177,-500.0,0.0003027,2]
[327420406,1716058246187,-500.0,0.0003027,2]
[327420407,1716058246197,-498.79076563,0.0003027,2]
[327420408,1716058267645,298.78407833,0.000192,2]
[327420409,1716058309739,181.32,0.00029391,120]
[327420410,1716058766135,184.97,0.00029176,120]
[327420411,1716058907137,315050.89889554,0.0001726,2]
[327420412,1716059245497,-207.58340724,0.000161,5]
[327420413,1716059245949,-192.41659276,0.000161,5]
[327420414,1716059247660,-167.40480911,0.000162,5]
[327420423,1716059431956,-207.58340724,0.000162,2]
[327420424,1716059431966,-632.59519089,0.000162,5]
[327420425,1716059431976,-1200.0,0.000163,5]
[327420426,1716059431986,-1600.0,0.000164,5]
[327420427,1716059431995,-2000.0,0.000165,6]
[327420428,1716059432004,-400.0,0.000166,6]
[327420429,1716059432014,-400.0,0.000167,6]
[327420430,1716059432023,-400.0,0.000168,6]
[327420431,1716059432033,-400.0,0.000169,6]
[327420432,1716059432042,-164.3,0.0001725,2]
[327420433,1716059432051,-164.3,0.0001725,2]
[327420434,1716059432060,-164.3,0.0001725,2]
[327420435,1716059432070,-164.3,0.0001725,2]
[327420436,1716059432079,-164.3,0.0001725,2]
[327420437,1716059432088,-164.3,0.0001725,2]
[327420439,1716059432098,-164.3,0.0001725,2]
[327420441,1716059432107,-204.82140187,0.00017257,2]
[327420443,1716059432116,-155.0,0.00017258,2]
[327420444,1716059432125,-75683.63241303,0.00017259,2]
[327420457,1716059438026,-427.74293833,0.00017259,2]
[327420458,1716059438204,-87136.42524129,0.00017259,2]
[327420459,1716059438216,-301821.16266207,0.00017259,2]
[327420460,1716059438226,-150.0,0.00017259,2]
[327420461,1716059438238,-150.0,0.00017259,2]
[327420462,1716059438248,-150.0,0.00017259,2]
[327420463,1716059438257,-150.0,0.00017259,2]
[327420464,1716059438267,-150.0,0.00017259,2]
[327420465,1716059438276,-150.0,0.00017259,2]
[327420466,1716059438285,-150.0,0.00017259,2]
[327420467,1716059438295,-150.0,0.00017259,2]
[327420468,1716059438304,-150.0,0.00017259,2]
[327420469,1716059438313,-150.0,0.00017259,2]
[327420470,1716059438323,-150.0,0.00017259,2]
[327420471,1716059438332,-150.0,0.00017259,2]
[327420472,1716059438342,-150.0,0.00017259,2]
[327420473,1716059438351,-150.0,0.00017259,2]
[327420474,1716059438360,-150.0,0.00017259,2]
[327420475,1716059438369,-150.0,0.00017259,2]
[327420476,1716059438380,-15223.06537929,0.0001726,2]
[327420478,1716059438395,-147696.5104039,0.0001726,2]
[327420501,1716059440045,-3083.60308796,0.0001726,2]
[327420502,1716059440056,-2745.42506863,0.0001726,2]
[327420503,1716059440068,-2267.885,0.0001726,2]
[327420504,1716059440079,-247387.84588778,0.0001726,2]
[327420505,1716059440218,-37129.32202531,0.0001726,2]
[327420506,1716059440392,-313.01594381,0.0001726,2]
[327420507,1716059440403,-291.44554907,0.0001726,2]
[327420519,1716059442934,-1133.20005046,0.0001726,2]
[327420520,1716059442947,-1308.00000413,0.0001726,2]
[327420521,1716059442958,-793.80189035,0.0001726,2]
[327420522,1716059442970,-400.70588266,0.0001726,2]
[327420529,1716059443123,-5770.87847284,0.0001726,2]
[327420531,1716059443335,-533.34082628,0.0001726,2]
[327420532,1716059443347,-15034.33035745,0.0001726,2]
[327420538,1716059446106,-668.795,0.0001726,2]
[327420539,1716059446119,-1446.17085845,0.0001726,2]
[327420540,1716059446131,-3264.2630295,0.0001726,2]
[327420541,1716059446142,-1649.32414159,0.0001726,2]
[327420542,1716059446155,-4423.89717805,0.0001726,2]
[327420543,1716059465451,1000.0,0.0003,120]
[327420544,1716059537688,1000.0,0.0003,120]
[327420545,1716059571745,1000.0,0.0003,120]
[327420546,1716059574849,1000.0,0.0003,120]
[327420547,1716059575701,1000.0,0.0003,120]
[327420548,1716059582016,1000.0,0.0003,120]
[327420550,1716059991614,150.0,0.00014989,2]
[327420551,1716059991640,7.61,0.00014989,2]
[327420552,1716060180877,-155.0,0.00016096,2]
[327420553,1716060180900,-207.36829237,0.00016096,2]
[327420554,1716060180921,-3060.46122056,0.00016097,2]
[327420555,1716060180942,-1829.91591212,0.00016098,2]
[327420556,1716060180964,-700.0,0.000161,5]
[327420557,1716060180995,-1415.1451,0.000161,2]
[327420558,1716060181016,-1400.0,0.000162,5]
[327420559,1716060181039,-2100.0,0.000163,5]
[327420560,1716060181062,-2800.0,0.000164,5]
[327420561,1716060181083,-3500.0,0.000165,6]
[327420562,1716060181105,-700.0,0.000166,6]
[327420563,1716060181125,-479.13,0.000166,2]
[327420564,1716060181147,-700.0,0.000167,6]
[327420565,1716060181170,-700.0,0.000168,6]
[327420566,1716060181193,-181.32,0.00016891,2]
[327420567,1716060181215,-700.0,0.000169,6]
[327420568,1716060181236,-250.0,0.00016907,2]
[327420569,1716060181256,-1237.86,0.00017003,2]
[327420570,1716060181278,-987.5286529,0.0001716,2]
[327420571,1716060181300,-1458.31577509,0.0001716,2]
[327420572,1716060181319,-366.88353949,0.00017258,2]
[327420573,1716060181339,-155.13236369,0.00017259,2]
[327420574,1716060181359,-162.46980569,0.00017259,2]
[327420575,1716060181378,-200.77628892,0.00017259,2]
[327420576,1716060181398,-266.10096852,0.00017259,2]
[327420577,1716060181418,-2360.79430003,0.00017259,2]
[327420578,1716060181438,-237.10219524,0.00017259,2]
[327420579,1716060181458,-488.45547559,0.00017259,2]
[327420580,1716060181477,-405.68231157,0.00017259,2]
[327420581,1716060181496,-157.62535748,0.00017259,2]
[327420582,1716060181517,-155.0,0.00017259,2]
[327420583,1716060181538,-623.01390858,0.00017259,2]
[327420584,1716060181558,-155.0,0.00017259,2]
[327420585,1716060181577,-2184.7567704,0.00017259,2]
[327420586,1716060181597,-155.08586995,0.00017259,2]
[327420587,1716060181619,-788.25935125,0.00017259,2]
[327420588,1716060181640,-2327.05522688,0.00017259,2]
[327420589,1716060181660,-160.6591699,0.00017259,2]
[327420590,1716060181683,-1082.12623622,0.00017259,5]
[327420591,1716060181704,-1141005.97590756,0.0001726,2]
[327420592,1716060194379,142.39,0.00015,2]
[327420593,1716060194403,150.0,0.00015,2]
[327420594,1716060194425,150.0,0.00015,2]
[327420595,1716060194447,256.95103296,0.00015,2]
[327420596,1716060194473,343.75102494,0.00015,2]
[327420597,1716060203144,292.29031226,0.00014989,2]
[327420598,1716060203940,298.83142374,0.00014989,2]
[327420599,1716060204536,1038.65205609,0.00014989,2]
[327420600,1716060204615,289.16546575,0.00014989,2]
[327420601,1716060204786,409.64950278,0.00014989,2]
[327420602,1716060204816,2304.12858441,0.00011242,2]
[327420603,1716060254093,85079.24285147,0.00011242,2]
[327420604,1716060254120,200000.0,0.00011242,2]
[327420605,1716060254146,6888.37171409,0.00011242,2]
[327420606,1716060254169,6888.37171409,0.00011242,2]
[327420607,1716060254191,288.37171409,0.00011242,2]
[327420608,1716060254217,2288.37171409,0.00011242,2]
[327420609,1716060254243,246061.20282601,0.00011242,2]
[327420610,1716060254386,298.83142374,0.00011242,2]
[327420611,1716060259371,409.64950278,0.00011242,2]
[327420612,1716060263634,150.0,0.00011242,2]
[327420613,1716060263657,142.29031226,0.00011242,2]
[327420614,1716060268389,298.83142374,0.00011242,2]
[327420615,1716060270082,437692.29969181,0.00011242,2]
[327420616,1716060271127,362.08661149,0.00011242,2]
[327420617,1716060279285,409.28392146,0.00011242,2]
[327420618,1716060279630,292.29031226,0.00011242,2]
[327420619,1716060284396,150.0,0.00011242,2]
[327420620,1716060284417,148.83142374,0.00011242,2]
[327420621,1716060287116,200.75865478,0.00011242,2]
[327420622,1716060287138,161.32795671,0.00011242,2]
[327420623,1716060295634,150.0,0.00011242,2]
[327420624,1716060295656,24.75565642,0.00011242,2]
[327420625,1716060307297,150.0,0.00011242,2]
[327420626,1716060307321,150.0,0.00011242,2]
[327420627,1716060307345,131.73499819,0.00011242,2]
[327420628,1716060307507,150.0,0.00011242,2]
[327420629,1716060307528,150.0,0.00011242,2]
[327420630,1716060307550,1.2409703,0.00011242,2]
[327420631,1716060324399,150.0,0.00011242,2]
[327420632,1716060324421,148.83142374,0.00011242,2]
[327420633,1716060362400,1.16857626,0.00011242,2]
[327420634,1716060362423,150.0,0.00011242,2]
[327420635,1716060362447,45.17811584,0.00011242,2]
[327420645,1716060632011,-263.02958027,0.00013754,2]
[327420646,1716060632021,-184.31827818,0.00013754,2]
[327420647,1716060632148,-351.31550612,0.00013754,2]
[327420648,1716060632159,-540.68765903,0.00013754,2]
[327420649,1716060632169,-410.27026242,0.00013755,2]
[327420650,1716060632461,-373.25108873,0.00013755,2]
[327420652,1716060632471,-204.82140187,0.00013755,2]
[327420654,1716060632481,-428.3967097,0.00013756,2]
[327420657,1716060632492,-3007.86436353,0.00013756,2]
[327420659,1716060632502,-386.09896072,0.00013756,2]
[327420662,1716060632514,-1306.24,0.00013756,2]
[327420674,1716060638198,-155.0,0.00013753,2]
[327420675,1716060638208,-2242.98215753,0.00013753,2]
[327420676,1716060638221,-2184.95350339,0.00013753,2]
[327420677,1716060638231,-2903.72903573,0.00013756,2]
[327420678,1716060638241,-364.18725345,0.00013756,2]
[327420679,1716060638250,-156.09220759,0.00013756,2]
[327420680,1716060638260,-1244.98776031,0.00013757,2]
[327420681,1716060638269,-2917.62814484,0.00013757,2]
[327420682,1716060638279,-2917.62814484,0.00013757,2]
[327420683,1716060638289,-2917.62814484,0.00013757,2]
[327420684,1716060638298,-2917.62814484,0.00013757,2]
[327420685,1716060638308,-643.26880273,0.00013758,2]
[327420686,1716060638318,-324.80287789,0.00013758,2]
[327420687,1716060638327,-207.58340724,0.00013759,2]
[327420688,1716060638337,-150.0,0.00013856,2]
[327420689,1716060638348,-150.0,0.00013856,2]
[327420690,1716060638357,-1616.20867822,0.00013857,2]
[327420691,1716060638367,-1205.40289274,0.00013857,2]
[327420692,1716060638377,-35357.46203519,0.00013857,2]
[327420693,1716060638386,-156.54,0.00013973,2]
[327420694,1716060638396,-157.61,0.00014322,2]
[327420695,1716060638405,-210.0,0.00015242,2]
[327420696,1716060638415,-210.0,0.00015242,2]
[327420697,1716060638426,-184.97,0.00015804,2]
[327420698,1716060638436,-499.99,0.00015984,2]
[327420699,1716060638446,-939.27219268,0.00015985,2]
[327420700,1716060638456,-150.99,0.00015985,2]
[327420701,1716060638466,-832.01,0.00015985,2]
[327420702,1716060638476,-6198.5483,0.00015996,2]
[327420703,1716060638485,-3089.9,0.00016374,2]
[327420704,1716060638494,-1297.63380595,0.00016396,2]
[327420705,1716060638503,-150.0,0.00016473,2]
[327420706,1716060638513,-250.0,0.00016504,2]
[327420707,1716060638522,-200.0,0.00016529,2]
[327420708,1716060638532,-293.0,0.00016766,2]
[327420709,1716060638541,-293.0,0.00016766,2]
[327420710,1716060638551,-416.97840649,0.0001715,2]
[327420711,1716060638561,-158.79165808,0.0001716,2]
[327420712,1716060638571,-172.24560322,0.0001716,2]
[327420713,1716060638580,-499.98655412,0.0001716,2]
[327420714,1716060638590,-13929.49709857,0.0001716,2]
[327420715,1716060638599,-416.97840649,0.00017249,2]
[327420716,1716060638610,-416.97840649,0.00017249,2]
[327420717,1716060638619,-217.34,0.00017249,3]
[327420718,1716060638629,-208.57383812,0.00017257,2]
[327420719,1716060638640,-298.09195788,0.00017257,2]
[327420720,1716060638650,-863.85702784,0.00017257,2]
[327420721,1716060638660,-186.31115594,0.00017257,2]
[327420722,1716060638669,-488.75855883,0.00017257,2]
[327420723,1716060638679,-282.33501335,0.00017257,2]
[327420724,1716060638688,-2000.27992103,0.00017258,2]
[327420725,1716060638699,-3461.67115116,0.00017258,2]
[327420726,1716060638709,-155.0,0.00017258,2]
[327420727,1716060638718,-523.26379453,0.00017259,2]
[327420728,1716060638728,-155.0,0.00017259,2]
[327420729,1716060638737,-414.58182648,0.00017259,2]
[327420730,1716060638747,-3027.72474316,0.00017259,2]
[327420731,1716060638757,-135264.71440674,0.00017259,2]
[327420732,1716060638767,-3284.07186617,0.00017259,2]
[327420733,1716060638777,-155.0,0.00017259,2]
[327420734,1716060638787,-5273.17210479,0.00017259,2]
[327420735,1716060638797,-5562.38640349,0.00017259,2]
[327420736,1716060638807,-167.84462842,0.00017259,2]
[327420737,1716060638816,-207.17530482,0.00017259,2]
[327420738,1716060638826,-1063.74496657,0.00017259,2]
[327420739,1716060638835,-155.0,0.00017259,2]
[327420740,1716060638845,-887.55075335,0.00017259,2]
[327420741,1716060638855,-4742.30332109,0.00017259,2]
[327420742,1716060638865,-155.0,0.00017259,2]
[327420743,1716060638877,-360.98885987,0.00017259,2]
[327420744,1716060638888,-3089.44753044,0.00017259,2]
[327420745,1716060638898,-150.0,0.00017259,2]
[327420746,1716060638907,-150.0,0.00017259,2]
[327420747,1716060638917,-150.0,0.00017259,2]
[327420748,1716060638927,-150.0,0.00017259,2]
[327420749,1716060638937,-150.0,0.00017259,2]
[327420750,1716060638949,-150.0,0.00017259,2]
[327420751,1716060638959,-150.0,0.00017259,2]
[327420752,1716060638968,-150.0,0.00017259,2]
[327420753,1716060638978,-150.0,0.00017259,2]
[327420754,1716060638987,-150.0,0.00017259,2]
[327420755,1716060638997,-150.0,0.00017259,2]
[327420756,1716060639006,-150.0,0.00017259,2]
[327420757,1716060639016,-150.0,0.00017259,2]
[327420758,1716060639027,-150.0,0.00017259,2]
[327420759,1716060639037,-150.0,0.00017259,2]
[327420760,1716060639047,-290351.22079809,0.0001726,2]
[327420761,1716060639064,-32248.2936388,0.0001726,2]
[327420762,1716060639079,-319444.22804136,0.0001726,2]
[327420763,1716060639107,-18313.33876981,0.0001726,2]
[327420764,1716060639120,-7272.65439133,0.0001726,2]
[327420765,1716060640242,-12295.92718545,0.0001726,2]
[327420766,1716060640254,-2980.27730005,0.0001726,2]
[327420767,1716060640390,-392.16973044,0.00013755,2]
[327420768,1716060640403,-6556.85805839,0.00013755,2]
[327420769,1716060640540,-3575.17681416,0.00013755,2]
[327420770,1716060640551,-3153551.23261802,0.0001726,2]
[327420771,1716060640564,-814.19486646,0.0001726,2]
[327420882,1716060646577,-3007.86436353,0.00017259,2]
[327420883,1716060646587,-75707.43408191,0.0001726,2]
[327420884,1716060824226,150.0,0.00013,2]
[327420885,1716060824248,150.0,0.00013,2]
[327420886,1716060824270,150.0,0.00013,2]
[327420887,1716060824291,150.0,0.00013,2]
[327420888,1716060824313,150.0,0.00013,2]
[327420889,1716060824334,150.0,0.00013,2]
[327420890,1716060824355,138689.69700597,0.00013,2]
[327420891,1716060873277,153.46870398,0.00011667,2]
[327420892,1716060873338,746.6498957,0.00011667,2]
[327420893,1716060944853,147506.74312645,0.0001118,2]
[327420894,1716060962155,242.97745179,0.000101,2]
[327420895,1716060997430,7741.39190065,0.0001,2]
[327420896,1716061036265,209.2400585,0.0001,2]
[327420901,1716061699154,-516.02698843,0.00014496,2]
[327420902,1716061699175,-525.71408206,0.00014496,2]
[327420903,1716061699196,-2958.25892951,0.00014496,2]
[327420904,1716061700137,-4000.0,0.00014496,2]
[327420905,1716061700694,-3565.94567348,0.00014496,2]
[327420906,1716061700715,-428.3967097,0.00014497,2]
[327420907,1716061700738,-5.65761682,0.00014497,2]
[327420908,1716061702310,-637.61118591,0.00014497,2]
[327420909,1716061702335,-3362.38881409,0.00014497,2]
[327420910,1716061709176,-3781.0,0.00014497,2]
[327420915,1716061722578,804.58197686,0.00012943,2]
[327420916,1716061740458,804.58197686,0.00012943,2]
[327420920,1716061762465,804.58197686,0.00012943,2]
[327420924,1716061782464,804.58197686,0.00012943,2]
[327420927,1716061802467,804.58197686,0.00012943,2]
[327420928,1716061818470,348.98930379,0.00012943,2]
[327420941,1716061832054,-281.78957957,0.00014495,2]
[327420942,1716061832064,-1629.72647614,0.00014496,2]
[327420943,1716061832329,-1287.9016687,0.00014496,2]
[327420944,1716061832338,-159.95559317,0.00014498,2]
[327420945,1716061832347,-150.0,0.00014595,2]
[327420946,1716061832356,-157.62,0.00014604,2]
[327420947,1716061832365,-210.0,0.00016055,2]
[327420948,1716061832374,-200.0,0.000162,5]
[327420949,1716061832384,-7.10665947,0.00016258,2]
[327420960,1716061838069,-10517.09794352,0.00016258,2]
[327420961,1716061838078,-3242.4,0.00016259,2]
[327420962,1716061838088,-338.3,0.00016271,2]
[327420963,1716061838097,-500.0,0.000163,5]
[327420964,1716061838107,-10000.0,0.00016317,2]
[327420965,1716061838116,-150.0,0.00016317,2]
[327420966,1716061838125,-152.56,0.00016379,2]
[327420967,1716061838133,-319.99,0.00016379,2]
[327420968,1716061838142,-4084.09997705,0.00016394,7]
[327420969,1716061838151,-700.0,0.000164,5]
[327420970,1716061838160,-1000.0,0.000165,6]
[327420971,1716061838168,-1200.0,0.000166,6]
[327420972,1716061838177,-250.0,0.00016629,2]
[327420973,1716061838186,-200.0,0.000167,6]
[327420974,1716061838195,-150.0,0.00016767,2]
[327420975,1716061838203,-200.0,0.000168,6]
[327420976,1716061838212,-300.0,0.00017059,2]
[327420977,1716061838221,-1755.53633392,0.00017155,2]
[327420978,1716061838230,-154.0834074,0.0001716,2]
[327420979,1716061838239,-173.13322766,0.0001716,2]
[327420980,1716061838248,-3063.72318487,0.00017243,2]
[327420981,1716061838257,-428.3967097,0.00017248,2]
[327420982,1716061838352,-263.02958027,0.00017257,2]
[327420983,1716061838377,-324.80287789,0.00017257,2]
[327420984,1716061838386,-598.4676915,0.00017257,2]
[327420985,1716061838395,-165.53963886,0.00017257,2]
[327420986,1716061838404,-317.63013013,0.00017257,2]
[327420988,1716061838413,-155.0,0.00017257,2]
[327420989,1716061838422,-4218.73176159,0.00017257,2]
[327420990,1716061838431,-156.27424885,0.00017257,2]
[327420991,1716061838440,-155.76867218,0.00017257,2]
[327420992,1716061838449,-1244.98776031,0.00017257,2]
[327420993,1716061838458,-229.94001832,0.00017257,2]
[327420995,1716061838467,-1272.16407144,0.00017257,2]
[327420997,1716061838476,-724.02500001,0.00017257,2]
[327420998,1716061838484,-6864.25876981,0.00017257,2]
[327420999,1716061838493,-155.18049844,0.00017257,2]
[327421000,1716061838502,-460.37833859,0.00017257,2]
[327421001,1716061838511,-245.96675055,0.00017257,2]
[327421002,1716061838520,-645.10923569,0.00017257,2]
[327421003,1716061838529,-3186.39736482,0.00017258,2]
[327421004,1716061838538,-35357.46203519,0.00017258,2]
[327421005,1716061838547,-782.14748573,0.00017259,2]
[327421006,1716061838556,-16888.49582521,0.00017259,2]
[327421007,1716061838589,-200.0,0.000169,6]
[327421008,1716061838598,-284932.66683686,0.00017259,2]
[327421009,1716061838607,-535.6337843,0.00017259,2]
[327421010,1716061838616,-188.26123372,0.00017259,2]
[327421011,1716061838629,-155.0,0.00017259,2]
[327421012,1716061838638,-156.4545868,0.00017259,2]
[327421013,1716061838647,-387.93842144,0.00017259,2]
[327421014,1716061838656,-10000.0,0.00017259,2]
[327421015,1716061838665,-150.0,0.00017259,2]
[327421016,1716061838674,-150.0,0.00017259,2]
[327421017,1716061838683,-150.0,0.00017259,2]
[327421018,1716061838693,-230.9764503,0.00017259,2]